Cogmind - Beta 13 @@@ ROGUE MODE // 2024.03.31 @ 03:29:17 Player: Alphabethead Result: Destroyed by D-53 Grenadier with Mini Grenade Launcher Performance ------------- Evolutions (0) 0 Regions Visited (2) 400 Robots Destroyed (8) 40 Value Destroyed (198) 198 Prototype IDs (0) 0 Alien Tech Used (0) 0 Bonus (0) 0 TOTAL SCORE: 638 Bonus ------- None Cogmind --------- Core Integrity 0/250 Matter 278/300 Energy 100/100 System Corruption 0% Temperature Cool (0) Movement Core (200) Ox3 Location -10/Mines Parts ------- > --- POWER (1) -------- (None) > --- PROPULSION (2) --- (None) > --- UTILITY (2) ------ Medium Storage Unit > --- WEAPON (2) ------- (None) > --- INVENTORY (10) --- Light Nuclear Core Wheel Wheel EM Pulse Gun Peak State ------------ > --- POWER ------------ Light Ion Engine > --- PROPULSION ------- Wheel Wheel > --- UTILITY ---------- Small Storage Unit > --- WEAPON ----------- Assault Rifle Assault Rifle > --- INVENTORY -------- Light Ion Engine Light Treads Light Treads EM Pulse Gun [Rating: 6] Favorites ----------- Power Ion Engine Engine Ion Engine Propulsion Light Treads Treads Light Treads Wheel Wheel Utility Medium Storage Unit Storage Medium Storage Unit Weapon Assault Rifle Ballistic Gun Assault Rifle Launcher Grenade Launcher Build | -11 -10 -10 ------- Run | Yrd Mat Min Slots Evolved . | . . . Power . | . . . Propulsion . | . . . Utility . | . . . Weapon . | . . . Parts Attached 17 | 7 7 3 Power 3 | 1 1 1 Engine 3 | 1 1 1 Core . | . . . Reactor . | . . . Propulsion 6 | 3 3 . Treads 3 | 1 2 . Leg . | . . . Wheel 3 | 2 1 . Hover . | . . . Flight . | . . . Utility 4 | 1 3 . Device . | . . . Storage 4 | 1 3 . Processor . | . . . Hackware . | . . . Protection . | . . . Artifact . | . . . Weapon 4 | 2 . 2 Energy Gun . | . . . Energy Cannon . | . . . Ballistic Gun 3 | 2 . 1 Ballistic Cannon . | . . . Launcher 1 | . . 1 Special Weapon . | . . . Impact Weapon . | . . . Slashing Weapon . | . . . Piercing Weapon . | . . . Special Melee Weapon . | . . . Unidentified Prototypes . | . . . Parts Lost 6 | . . 6 Power 1 | . . 1 Propulsion 2 | . . 2 Utility . | . . . Weapon 3 | . . 3 Highest Loss Streak 6 | . . 6 To Critical Strikes . | . . . Average Slot Usage (%) 81 | . 85 79 Engine 13 | . 14 12 Treads 26 | . 25 26 Storage 14 | . 14 14 Ballistic Gun 26 | . 28 24 Naked Turns . | . . . Heaviest Build 27 | 12 27 20 Greatest Support 40 | 20 40 40 Greatest Overweight (x) 3 | . 1 3 Average Overweight (x) . | . . . Largest Inventory Capacity 15 | 8 15 10 Average Capacity 9 | 7 9 10 Most Carried 8 | 8 6 6 Average Carried 4 | 3 4 4 Final Capacity 10 | 8 10 10 Final Carried 5 | 4 5 4 Class Distribution -------------------- 100% | Mutant Dominant Class ---------------- Mutant | -10/Materials Mutant | -10/Mines Resources | -11 -10 -10 ----------- Run | Yrd Mat Min Matter Collected 482 | 237 157 88 Remotely . | . . . Salvage Created 270 | . 157 113 Parts 15 | . 5 10 Haulers Intercepted . | . . . Recyclers Shooed 1 | . 1 . Parts Field Recycled . | . . . Retrieved Matter . | . . . Parts Self-Destructed . | . . . Prevented . | . . . Kills | -11 -10 -10 ------- Run | Yrd Mat Min Combat Hostiles Destroyed 7 | . 2 5 Guns 7 | . 2 5 Classes Destroyed 3 | . 2 1 Recycler 1 | . 1 . Swarmer 3 | . . 3 Grunt 4 | . 2 2 Best Kill Streak 5 | . 3 5 Combat Bots Only 5 | . 2 5 Max Kills in Single Turn 1 | . 1 1 Gunslinging . | . . . Exploded . | . . . Melee . | . . . Uniques/NPCs Destroyed . | . . . Combat | -11 -10 -10 -------- Run | Yrd Mat Min Hostile Shots Fired 56 | . 17 39 Missed 15 | . 7 8 Damage Taken 926 | . 148 778 Core 262 | . 11 251 Absorbed by Shields . | . . . Core Remaining (%) 100 | 100 . . Volleys Fired 28 | . 12 16 Largest 2 | . 2 2 Hottest 50 | . 40 50 Shots Fired 56 | . 24 32 Gun 54 | . 24 30 Cannon . | . . . Launcher 2 | . . 2 Special . | . . . Kinetic 54 | . 24 30 Thermal . | . . . Explosive 2 | . . 2 Electromagnetic . | . . . Robot Hit Streak 9 | . 9 7 Robot Miss Streak 4 | . 2 4 Penetration Max . | . . . Secondary Targets 1 | . . 1 Max Gunslinging Chain 1 | . . 1 Shots Hit Robots 37 | . 18 19 Core Hits 21 | . 7 14 Critical Kills . | . . . Critical Parts Destroyed . | . . . Critical Strikes . | . . . Melee Attacks . | . . . Impact . | . . . Slashing . | . . . Piercing . | . . . Sneak Attacks . | . . . Combat Hostiles . | . . . Follow-up Attacks . | . . . Damage Inflicted 487 | . 221 266 Guns 468 | . 221 247 Cannons . | . . . Explosions 9 | . . 9 Melee . | . . . Ramming 10 | . . 10 Kinetic 468 | . 221 247 Thermal . | . . . Explosive 9 | . . 9 Electromagnetic . | . . . Impact . | . . . Slashing . | . . . Piercing . | . . . Highest Corruption . | . . . Average Corruption . | . . . Corruption Purged . | . . . Corruption Blocked . | . . . Overload Shots . | . . . Overflow Damage . | . . . Projectiles . | . . . Explosions . | . . . Melee . | . . . Knockbacks . | . . . Impact . | . . . Kinetic . | . . . Secondary . | . . . Self-Inflicted Damage 15 | . . 15 Shots 1 | . . 1 Rammed 5 | . . 5 Targets Rammed 5 | . . 5 Kicked . | . . . Crushed . | . . . Highest Temperature 20 | . 20 2 Average Temperature 7 | . 9 2 Received Heat Transfer 168 | . 114 54 Siege Activations . | . . . Robots Corrupted . | . . . Combat Hostiles . | . . . Parts Fried . | . . . Impact Corruptions . | . . . Robots Melted . | . . . Combat Hostiles . | . . . Parts Melted . | . . . Heat Transferred . | . . . Parts Sabotaged . | . . . Parts Stolen . | . . . Parts Stripped . | . . . Power Chain Reactions . | . . . Alert | -11 -10 -10 ------- Run | Yrd Mat Min Peak Influence 176 | . 55 176 Initial 21 | . . 21 Average 73 | . 35 123 Maximum Alert Level . | . . . Low Security (%) 100 | 100 100 100 Level 1 . | . . . Level 2 . | . . . Level 3 . | . . . Level 4 . | . . . Level 5 . | . . . High Security . | . . . Max Security . | . . . Squads Dispatched . | . . . Investigation . | . . . Extermination . | . . . Reinforcement . | . . . Assault . | . . . Garrison . | . . . Intercept . | . . . Searches Triggered . | . . . Construction Impeded . | . . . Haulers Reinforced . | . . . Active Scanning Responses . | . . . Cargo Convoy Interrupts . | . . . Stealth | -11 -10 -10 --------- Run | Yrd Mat Min Distress Signals . | . . . Communications Jammed . | . . . Distress Signals . | . . . Times Spotted 13 | . 2 11 Peak Tracking Total 4 | . 2 4 Tactical Retreats . | . . . Traps | -11 -10 -10 ------- Run | Yrd Mat Min Traps Triggered . | . . . Indirectly . | . . . Trap Hack Attempts . | . . . Triggered . | . . . Disarmed . | . . . Reprogrammed . | . . . Reused . | . . . Traps Extracted . | . . . Installed . | . . . Triggered . | . . . Machines | -11 -10 -10 ---------- Run | Yrd Mat Min Machines Disabled . | . . . Max in Single Turn . | . . . Machines Repaired . | . . . Machines Dismantled . | . . . Machines Sabotaged . | . . . Overloaded Fab Kills . | . . . Hacking | -11 -10 -10 --------- Run | Yrd Mat Min Machines Accessed 1 | . 1 . Terminals 1 | . 1 . Fabricators . | . . . Repair Stations . | . . . Recycling Units . | . . . Scanalyzers . | . . . Garrison Access . | . . . Total Hacks 3 | . 3 . Successful . | . . . Failed 3 | . 3 . Catastrophic . | . . . Database Lockouts . | . . . Manual . | . . . Terminals 3 | . 3 . Fabricators . | . . . Repair Stations . | . . . Recycling Units . | . . . Scanalyzers . | . . . Garrison Access . | . . . Terminal Hacks . | . . . Fabricator Hacks . | . . . Repair Station Hacks . | . . . Recycling Unit Hacks . | . . . Scanalyzer . | . . . Garrison Access Hacks . | . . . Unauthorized Hacks . | . . . Terminals . | . . . Fabricators . | . . . Repair Stations . | . . . Recycling Units . | . . . Scanalyzers . | . . . Garrison Access . | . . . Data Cores Recovered . | . . . Used . | . . . Hacking Detections 1 | . 1 . Full Trace Events 1 | . 1 . Feedback Events . | . . . Feedback Blocked . | . . . Robot Schematics Acquired . | . . . Robots Built . | . . . Authchips . | . . . Time . | . . . Total Robot Build Rating . | . . . Part Schematics Acquired . | . . . Parts Built . | . . . Authchips . | . . . Time . | . . . Total Part Build Rating . | . . . Parts Repaired . | . . . Time . | . . . Parts Recycled . | . . . Recycled Matter . | . . . Retrieved Matter . | . . . Retrieved Components . | . . . Parts Scanalyzed . | . . . Part Schematics Acquired . | . . . Parts Damaged . | . . . Bothacking | -11 -10 -10 ------------ Run | Yrd Mat Min Used RIF Installer . | . . . Robots Hacked . | . . . Non-combat . | . . . Combat . | . . . Robot Hacks Applied . | . . . Relay Couplers Released . | . . . Fabnet Peak Effective % . | . . . Robots Rewired . | . . . Allies Hacked . | . . . Hacks Repelled . | . . . Allies | -11 -10 -10 -------- Run | Yrd Mat Min Total Allies . | . . . Largest Group . | . . . Highest-Rated Group . | . . . Highest-Rated Ally . | . . . Total Orders . | . . . Ally Attacks . | . . . Total Damage . | . . . Kills . | . . . Allies Corrupted . | . . . Allies Melted . | . . . Intel | -11 -10 -10 ------- Run | Yrd Mat Min Robot Analysis Total . | . . . Derelict Logs Recovered . | . . . Drone Launches . | . . . Drone Recoveries . | . . . Exploration | -11 -10 -10 ------------- Run | Yrd Mat Min Turns Passed 546 | 70 208 268 Spaces Moved 297 | 65 104 128 Core 10 | 6 . 4 Treads 216 | . 92 124 Legs . | . . . Wheels 71 | 59 12 . Hover . | . . . Flight . | . . . Fastest Speed 50 | 50 80 160 Average Speed 139 | 77 151 161 Slowest Speed 200 | 80 160 200 Overloaded Moves . | . . . Propulsion Burnouts . | . . . Robots Hopped . | . . . Cave-ins Triggered . | . . . Exploration Rate (%) 13 | 4 15 22 Regions Visited 2 Branch Regions 1 Pre-discovered Areas . | . . . Known Exits Taken . | . . . Unknown Exits Taken 2 | 1 1 . Scrap Searched . | . . . Spaces Dug . | . . . Terrain Destroyed 15 | . . 15 Melee . | . . . Projectile . | . . . AOE 15 | . . 15 Terrain Rammed . | . . . Walls Destroyed . | . . . Machines Disabled . | . . . Actions | -11 -10 -10 --------- Run | Yrd Mat Min Total 371 | 86 130 155 Wait . | . . . Move 295 | 64 103 128 Hop . | . . . Pick Up 17 | 12 4 1 Fast Attach . | . . . Attach 10 | 7 1 2 Detach 3 | 1 1 1 Swap 7 | . 6 1 Drop 6 | 2 3 1 Fire 28 | . 12 16 Melee . | . . . Ram . | . . . Kick . | . . . Crush 5 | . . 5 Escape Stasis . | . . . Rewire . | . . . Trap . | . . . Miscellaneous . | . . . Route ------- -11/Scrapyard -10/Materials -10/Mines History --------- Turn | Location | Event 30 | -11/Scrapyard | Discovered new exit (range 15) 71 | -11/Scrapyard | Entered Materials 260 | -10/Materials | Discovered new exit (range 12) 279 | -10/Materials | Entered Mines 304 | -10/Mines | Build established: Mutant 462 | -10/Mines | Assembled infested the area 540 | -10/Mines | Core integrity fell below 50% 544 | -10/Mines | Core integrity fell below 20% 547 | -10/Mines | Destroyed by D-53 Grenadier with Mini Grenade Launcher Last Messages --------------- 00520_ The unstable cave ceiling collapses. 00521_ Assault Rifle destroyed. 00525_ Lgt. Treads destroyed. 00527_ The unstable cave ceiling collapses. 00528_ D-53 Grenadier destroyed. 00531_ The unstable cave ceiling collapses. 00533_ as-28724 destroyed. 00535_ The unstable cave ceiling collapses. 00535_ D-53 Grenadier suffers critical hit (Burn). 00535_ as-84895 destroyed. 00537_ The unstable cave ceiling collapses. 00539_ Lgt. Treads destroyed. 00540_ The unstable cave ceiling collapses. 00541_ D-53 Grenadier heat damages Cmb. Airjet. 00544_ The unstable cave ceiling collapses. 00546_ D-53 Grenadier heat damages Mni. Grenade Launcher, Lgt. Deuterium Engine. 00547_ D-53 Grenadier heat short circuits Cmb. Airjet. Map ----- +----------------------------------------------------+ | ???????????????????????????????????????? | | ???????????????????????????????????????? | | ???????????????????????????????????????? | | ???????????????????????????????????????? | | ???????????????????????????????????????? | | ???????????????????????????????????????? | | ???????????????????????????????????????? | | ???????????????????????????????????????? | | ???????????????????????????????????????? | | ???????????????????????????????????????? | | ???????????????????????????????????????? | | ???????????????????????????????????????? | | ???????????????????????????????????????? | | ???????????????????????????????????????? | | ???????????????????????????????????????? | | ???????????????????????????????????????? | | ???????????????????????????????????????? | | ???????????????????????????????????????? | | ?????????????######????????????##??#???? | | ?????????????? #####?????? # ??? | | ??????????????## # ###??# ### | | ?????????????## ### | | ??????######## ?? | | ????? # = ?? | | ????????????# %] #??? | | ??????????### @ d* #??? | | ????? # # ##?? | | ????# #### # #?? | | ??????????# ## % ##? | | ??????????# ####### ##### ### ## | | ??# ??????# #?# #?## # | | ??# ##### #?# "% ###??# # | | ??# ^ ### ##############????# | | ???????# ^ % #????????????????## | | ???????# ### #??????????????### # | | ???# ^ # ### ###???????????## ### | | ???## ## # #???????????# ##?? | | ????## ?? ^#*[ #???????????# ##??? | | ?????#??#####%= #???????????## ##???? | | ?????????#=%*=""" #????????????###?????? | | ?????????#[##[""" #????????????????????? | | ????######*##=""" #????????????????????? | | ????# ########????????????????????? | | ????# #### #???????????????????????????? | | ????# #??# #???????????????????????????? | | ????# #??# #???????????????????????????? | | ????# #??# #???????????????????????????? | | ????# #??# #???????????????????????????? | | ????# #??# #???????????????????????????? | | ????# #??# ???????????????????????????? | +----------------------------------------------------+ Best States ------------- Heat Dissipation 25 Energy Generation 10 Energy Capacity 250 Matter Stores 300 Matter Capacity 300 Sight Range 16 Terrain Scan Density 10 Evasion (%) 44 Recoil Reduction 2 Item Schematics ----------------- None Robot Schematics ------------------ None Fabricated ------------ Nothing Alien Tech Used ----------------- None Achievements -------------- None Challenges ------------ None Game ------ Seed MassHugeExtractor Manual? 0 Play Time 00:29:33 Cumulative 4.2 hours Start 2024.03.31 @ 02:52:50 End 2024.03.31 @ 03:29:17 Sessions 1 Manual Loads 0 Difficulty Rogue Special Mode None Game No. 4 Rogue 4 Adventurer 0 Explorer 0 Win Type - Total 0 Types 0/0/0/0/0/0/0/0/0 Lore% 3 Gallery% 9 Achievement% 9 Wizard Run 0 Options --------- Layout 1 ASCII 0 Keyboard 1 Movement Arrows Keybinds 0 Fullscreen 1 Font 24/Smallcaps Map View 50x35 Zoom Use 0% Tactical HUD 1 Map Filters NONE Filters NONE Steam 1 RUN: 71c9f408-7928-4446-9dee-a39bc2e20acc